[Event "Swedish-ch MK-Elit 2022"]
[Site "Uppsala"]
[Date "2022.07.04"]
[Round "3.2"]
[White "Wiedenkeller, Michael"]
[Black "Ernst, Thomas"]
[Result "1-0"]
[ECO "A45"]
[WhiteElo "2437"]
[BlackElo "2289"]
[Annotator "TA"]
[PlyCount "53"]
[EventDate "2022.07.01"]
[EventType "tourn"]
[EventCountry "SWE"]
[SourceTitle "playchess.com"]
[Source "ChessBase"]
[SourceQuality "1"]
[TimeControl "40/5400+30:1800+30"]

{[%evp 16,53,39,27,48,49,31,20,20,16,15,-2,36,85,100,88,178,168,177,187,188,191,176,195,227,252,245,189,195,191,237,234,235,230,258,237,289,272,437,435]} 1. d4 {[%emt 0:00:26]} Nf6 {[%emt 0:00:09]} 2. Bg5 {[%emt 0:00:48]} Ne4 {[%emt 0:00:21]} 3. Bf4 {[%emt 0:00:16]} c5 {[%emt 0:00:20]} 4. f3 {[%emt 0:01:06]} Qa5+ {[%emt 0:01:53]} 5. c3 {[%emt 0:00:36]} Nf6 {[%emt 0:00:12]} 6. d5 {[%emt 0:01:15]} Qb6 {[%emt 0:00:25]} 7. Bc1 {[%emt 0:01:03]} e6 {[%emt 0:00:52]} 8. e4 {[%emt 0:03:05][%cal Be2e4,Be4d5,Bd5d6][%mdl 32]} exd5 {[%emt 0:00:33]} 9. exd5 {[%emt 0:00:18]} Bd6 {[%emt 0:00:36] A45: Trompowsky Attack.} 10. Na3 $1 {[%emt 0:10:09] The main line 10.Na3 scores better than 10.c4.} O-O {[%emt 0:00:24]} 11. Bd3 {[%emt 0:03:31]} Re8+ {[%emt 0:06:46] The position is equal.} 12. Ne2 {[%emt 0:00:30]} Bf8 {[%emt 0:00:11]} 13. Nc4 {[%emt 0:02:34]} Qc7 {[%emt 0:10:22]} (13... Qd8 $5 {[%cal Rb7b5]}) 14. d6 {[%emt 0:13:50] [#]} Qc6 $146 {[%emt 0:00:18] [#]} ({Predecessor:} 14... Qd8 15. a4 h6 16. O-O b6 17. Ng3 Ba6 18. Rb1 Nc6 19. b4 cxb4 20. cxb4 b5 {0-1 (44) Manarin,F (1915)-Vajas,S (2061) ICCF email 2015}) 15. a4 {[%emt 0:08:23] White is more active.} b6 {[%emt 0:01:52] [#]} (15... Re6 $16 {might work better.}) 16. Bg5 $1 $18 {[%emt 0:04:07]} Ba6 {[%emt 0:02:31] White must now prevent ...Qd5.} 17. Bxf6 {[%emt 0:02:47]} gxf6 {[%emt 0:00:06]} 18. O-O {[%emt 0:03:29]} Kh8 {[%emt 0:03:44]} 19. Ng3 {[%emt 0:11:31][%cal Od3b1] Bb1! is the strong threat.} Bxc4 {[%emt 0:01:41]} 20. Bxc4 {[%emt 0:00:07][%cal Bd3c4,Bc4f7,Bf7d5,Bd5e4][%mdl 32]} Qxd6 {[%emt 0:00:13]} 21. Bxf7 {[%emt 0:04:51]} Qxd1 {[%emt 0:01:46]} 22. Raxd1 {[%emt 0:04:59]} Re7 {[%emt 0:00:13]} (22... Rd8 {was necessary.} 23. f4 Nc6) 23. Bd5 {[%emt 0:04:04]} Nc6 {[%emt 0:00:09]} 24. Be4 {[%emt 0:00:28]} Rb8 {[%emt 0:06:50]} 25. Nf5 {[%emt 0:00:24]} Re5 {[%emt 0:00:13]} 26. Rxd7 {[%emt 0:00:29]} Ne7 $2 {[%emt 0:00:28]} (26... Re6 27. Rfd1 a6) 27. Nd6 {[%emt 0:02:39] Black got outplayed after the opening.  Weighted Error Value: White=0.05 (flawless) /Black=0.29 (precise)} 1-0

[Event "Swedish-ch MK-Elit 2022"]
[Site "Uppsala"]
[Date "2022.07.04"]
[Round "3.3"]
[White "Trost, Edvin"]
[Black "Johansson, Jan"]
[Result "0-1"]
[ECO "A50"]
[WhiteElo "2345"]
[BlackElo "2306"]
[Annotator "TA"]
[PlyCount "76"]
[EventDate "2022.07.01"]
[EventType "tourn"]
[EventCountry "SWE"]
[SourceTitle "playchess.com"]
[Source "ChessBase"]
[SourceQuality "1"]
[TimeControl "40/5400+30:1800+30"]

{[%evp 9,76,16,14,32,22,18,86,78,184,153,184,172,195,137,137,9,32,13,41,17,7,13,11,10,22,35,24,24,46,26,25,7,10,14,27,-13,49,0,0,0,16,-11,-12,-55,-43,-78,-93,-130,-140,-140,-153,-142,-116,-743,-748,-722,-756,-937,-891,-1596,-1527,-1910,-1878,-2007,-2153,-2897,-2845,-2870,-2793]} 1. d4 {[%emt 0:00:11]} Nf6 {[%emt 0:00:44]} 2. c4 {[%emt 0:00:59]} e6 {[%emt 0:00:08]} 3. Bf4 {[%emt 0:04:31]} c5 {[%emt 0:05:21]} 4. d5 {[%emt 0:00:33]} b5 {[%emt 0:08:16]} 5. Nf3 {[%emt 0:00:42]} exd5 {[%emt 0:10:13]} 6. cxd5 {[%emt 0:01:12] Threatens to win with d6. A50: Queen's Fianchetto Defence (1 d4 Nf6 2 c4 b6).} Bb7 {[%emt 0:00:07]} 7. e4 {[%emt 0:07:32] [#]} Qe7 $146 {[%emt 0:06:40]} (7... Nxe4 $11 {remains equal.} 8. Bxb5 Qa5+ 9. Nfd2 Bd6) ({Predecessor:} 7... Nxe4 8. Nc3 Nxc3 9. bxc3 Qa5 10. Qd2 Be7 11. Rb1 a6 12. c4 Qxd2+ 13. Nxd2 f5 {½-½ (27) Beradze,I (2425)-Abasov,N (2571) Nakhchivan 2016}) 8. Be3 {[%emt 0:12:32] White is better.} Qxe4 {[%emt 0:07:12]} (8... a6 $16 {was worth a try.}) 9. Nc3 $18 {[%emt 0:00:53]} Qb4 {[%emt 0:19:43] [#]} 10. Qe2 $1 {[%emt 0:10:24] aiming for Bxc5+.} Be7 {[%emt 0:13:11]} 11. d6 {[%emt 0:05:24]} (11. a3 $18 Qc4 12. Qd1 (12. Qxc4 bxc4 13. Bxc4 d6 $14)) 11... Ne4 $16 {[%emt 0:04:25] [#]} (11... Bxf3 $2 12. gxf3 Nc6 13. O-O-O $18) 12. Bd2 {[%emt 0:03:36]} (12. dxe7 $6 Nxc3 13. Qd2 Nd5 $11) (12. Bxc5 $1 $16 Qxc5 13. Nxe4 Qb4+ 14. Nfd2 Bxe4 15. Qxe4 Qxe4+ 16. Nxe4) 12... Nxd6 $11 {[%emt 0:02:29] [#]} (12... Qxb2 $2 13. Rb1 Qxb1+ 14. Nxb1 Nxd6 15. Bf4 $18) 13. Nd5 $1 {[%emt 0:00:30][%csl Gd5][%cal Re2e7]} Qe4 {[%emt 0:04:01]} 14. Qxe4 {[%emt 0:00:12]} Nxe4 {[%emt 0:00:03]} 15. Nc7+ {[%emt 0:00:06]} Kd8 $1 {[%emt 0:00:09]} 16. Nxa8 {[%emt 0:00:45][%cal Od2e3]} Bxa8 {[%emt 0:00:04]} 17. Ba5+ {[%emt 0:01:39]} Kc8 {[%emt 0:01:10]} 18. Bxb5 {[%emt 0:00:17]} Bf6 {[%emt 0:01:09]} 19. Rb1 {[%emt 0:01:56]} (19. Bd3 $5 {[%cal Ra1c1]}) 19... Nc6 {[%emt 0:02:30]} 20. Bxc6 {[%emt 0:01:13]} Bxc6 {[%emt 0:00:06]} 21. O-O {[%emt 0:01:16]} Kb7 {[%emt 0:02:47]} 22. Rfc1 {[%emt 0:04:08]} Ka6 {[%emt 0:00:54]} (22... Re8 $11) 23. Bc7 {[%emt 0:09:44]} (23. Bc3 $14) 23... Re8 {[%emt 0:02:43]} 24. Bf4 {[%emt 0:01:18]} Kb5 {[%emt 0:01:41]} 25. Re1 {[%emt 0:01:31][%cal Of4g5]} Re6 {[%emt 0:00:26][%mdl 1024] Black has compensation.} 26. Re2 {[%emt 0:12:14]} a5 {[%emt 0:00:37][%cal Ba7a5,Ba5a4][%mdl 32]} 27. Rbe1 {[%emt 0:00:50]} a4 {[%emt 0:00:23]} 28. Bc1 {[%emt 0:11:54]} d5 {[%emt 0:01:02][%cal Bd7d5,Bd5d4][%mdl 32]} 29. a3 {[%emt 0:02:28]} d4 {[%emt 0:01:36]} 30. Nd2 {[%emt 0:02:27]} Nxd2 {[%emt 0:00:20] Black is more active.} 31. Bxd2 $4 {[%emt 0:01:06][%mdl 8192] This move loses the game for White.} (31. Rxe6 $17 Nf3+ 32. gxf3 fxe6 33. Rxe6) 31... Rxe2 $19 {[%emt 0:00:23] Black is clearly winning.} 32. Rxe2 $17 {[%emt 0:00:00][%mdl 4096] Endgame KRB-KB} Kc4 {[%emt 0:00:11]} 33. Bf4 {[%emt 0:02:24]} Kb3 {[%emt 0:00:34] And now ...d3 would win.} 34. Bd6 {[%emt 0:00:32]} c4 {[%emt 0:00:14]} 35. Bb4 {[%emt 0:00:30]} d3 {[%emt 0:00:29][%csl LRb2,LRe2][%mdl 64] Deflection} 36. Re3 {[%emt 0:00:30]} Bxb2 {[%emt 0:00:32]} 37. Kf1 {[%emt 0:00:30]} Bxa3 {[%emt 0:01:30] This bishop pair is nice.} 38. Bd2 {[%emt 0:00:30]} Bb2 {[%emt 0:00:45] Weighted Error Value: White=0.85/Black=0.11 (very precise)} 0-1

[Event "Swedish-ch MK-Elit 2022"]
[Site "Uppsala"]
[Date "2022.07.04"]
[Round "3.4"]
[White "Andersson, Tommy"]
[Black "Von Bahr, Oskar"]
[Result "1/2-1/2"]
[ECO "A37"]
[WhiteElo "2384"]
[BlackElo "2386"]
[Annotator "TA"]
[PlyCount "133"]
[EventDate "2022.07.01"]
[EventType "tourn"]
[EventCountry "SWE"]
[SourceTitle "playchess.com"]
[Source "ChessBase"]
[SourceQuality "1"]
[TimeControl "40/5400+30:1800+30"]

{[%evp 11,133,3,18,0,11,4,38,0,5,0,0,0,0,0,11,0,0,0,0,18,53,33,54,71,75,77,76,38,41,16,17,20,9,-52,33,-49,-37,-51,-52,-53,-56,-66,-67,-62,-66,-60,-67,-60,-69,-66,-70,-88,-51,-51,-51,-51,-51,-51,-41,-52,-26,-14,-8,-5,-3,-6,0,0,0,0,0,0,0,-8,-8,-8,-8,-8,-8,-8,-8,-8,0,0,0,0,0,0,0,0,0,0,0,0,0,0,0,0,0,-8,-8,-8,-8,-8,-8,-8,-8,-8,-8,-8,-8,-8,-8,-8,-8,-8,-8,-8,-8,-8,-8,-8,-8,-8]} 1. Nf3 {[%emt 0:00:04]} c5 {[%emt 0:02:36]} 2. c4 {[%emt 0:00:50]} Nc6 {[%emt 0:00:38]} 3. Nc3 {[%emt 0:03:23]} g6 {[%emt 0:04:12]} 4. g3 {[%emt 0:02:06]} Bg7 {[%emt 0:00:11]} 5. Bg2 {[%emt 0:00:06]} d6 {[%emt 0:00:52]} 6. O-O {[%emt 0:01:12]} Bf5 {[%emt 0:00:12] 6...e6 is becoming the main line.} 7. b3 {[%emt 0:02:56] A37: Symmetrical English vs ...g6: 4 Bg2 Bg7 5 Nf3.} Qd7 {[%emt 0:03:34]} 8. Bb2 $1 {[%emt 0:04:54]} Bh3 {[%emt 0:02:36]} 9. Bxh3 {[%emt 0:18:22] White is slightly better.} Qxh3 {[%emt 0:00:12] [#]} 10. Rb1 $146 {[%emt 0:00:16]} ({Predecessor:} 10. e3 Nh6 11. d4 O-O 12. Nd5 cxd4 13. exd4 Rad8 14. Qe2 Rfe8 15. Rfe1 Qc8 16. Rad1 {1-0 (37) Benidze,D (2478)-Yurtseven,M (2355) Izmir 2015}) 10... Nh6 {[%emt 0:12:21]} 11. Ng5 {[%emt 0:13:39]} Qg4 {[%emt 0:06:40]} 12. f4 {[%emt 0:02:31]} f6 {[%emt 0:09:50]} 13. Nd5 {[%emt 0:13:47]} O-O {[%emt 0:02:19]} 14. Ne4 {[%emt 0:04:49]} Rad8 {[%emt 0:11:02]} 15. e3 {[%emt 0:01:39]} Qxd1 {[%emt 0:03:56]} (15... Qd7 {with more complications.} 16. Qc2 f5 17. Bxg7 Kxg7 18. Qc3+ Kg8) 16. Rfxd1 {[%emt 0:01:39]} Nf7 {[%emt 0:01:22]} 17. Nc7 $1 {[%emt 0:03:58] Black must now prevent Ne6.} Rc8 {[%emt 0:06:52]} (17... f5 $2 18. Bxg7 Kxg7 19. Ne6+ Kg8 20. Nc3 $18) 18. Ne6 {[%emt 0:00:07] White is much more active.} Rfe8 {[%emt 0:00:03]} 19. Nxg7 {[%emt 0:03:48]} Kxg7 {[%emt 0:00:07]} 20. d4 {[%emt 0:00:10]} cxd4 {[%emt 0:01:47]} 21. exd4 {[%emt 0:00:37]} d5 {[%emt 0:05:27]} 22. Nc5 {[%emt 0:08:42]} (22. cxd5 $11 Nb4 23. Nc3) 22... Nfd8 {[%emt 0:01:57]} (22... Nd6 $15) 23. cxd5 {[%emt 0:00:46]} (23. Rbc1 $14) 23... Nb4 $1 $15 {[%emt 0:00:20][%csl LRa2,LRd5]} 24. a3 {[%emt 0:02:28]} Nxd5 {[%emt 0:00:49]} 25. Rbc1 {[%emt 0:00:29]} b6 {[%emt 0:03:41]} 26. Nd3 {[%emt 0:02:31]} Nb7 {[%emt 0:01:33]} 27. Kf2 {[%emt 0:00:44]} Na5 {[%emt 0:01:06] Pair of Knights!} 28. Rxc8 {[%emt 0:03:13]} Rxc8 {[%emt 0:00:05]} 29. Rc1 {[%emt 0:00:03] Prevents Rc2+.} Rxc1 {[%emt 0:01:34]} 30. Nxc1 {[%emt 0:00:07][%mdl 4096] Endgame KBN-KNN} Kf7 {[%emt 0:01:19]} 31. Ke2 {[%emt 0:02:11]} b5 {[%emt 0:02:24]} 32. Kd3 {[%emt 0:00:11]} Ke6 {[%emt 0:00:46]} 33. Bc3 {[%emt 0:00:41]} Nc6 {[%emt 0:01:36]} 34. Bd2 {[%emt 0:00:43]} Kf5 {[%emt 0:01:21] Threatens to win with ...Kg4.} 35. h3 {[%emt 0:00:07]} h5 {[%emt 0:01:15]} 36. Ne2 {[%emt 0:01:20]} a6 {[%emt 0:01:55] The position is equal.} 37. Ng1 {[%emt 0:02:14]} Ke6 {[%emt 0:04:58]} 38. g4 {[%emt 0:00:46]} hxg4 {[%emt 0:02:04]} 39. hxg4 {[%emt 0:00:02]} Nd8 {[%emt 0:01:08]} 40. Nf3 {[%emt 0:00:48]} Nb7 {[%emt 0:01:01]} 41. Nh4 {[%emt 0:11:58]} Kf7 {[%emt 0:01:27]} 42. f5 {[%emt 0:02:16]} g5 {[%emt 0:05:22]} 43. Ng2 {[%emt 0:03:27]} e6 {[%emt 0:03:28]} 44. fxe6+ {[%emt 0:00:42]} Kxe6 {[%emt 0:00:08]} 45. Ke4 {[%emt 0:08:46]} Nd6+ {[%emt 0:00:36]} 46. Kf3 {[%emt 0:00:10]} Nf7 {[%emt 0:01:30]} 47. Ne1 {[%emt 0:00:14]} f5 {[%emt 0:03:40]} 48. Nd3 {[%emt 0:02:50]} fxg4+ {[%emt 0:00:47]} 49. Kxg4 {[%emt 0:00:13]} Nf6+ {[%emt 0:00:14]} 50. Kf3 {[%emt 0:00:14]} Kf5 {[%emt 0:09:52]} 51. Nc5 {[%emt 0:00:59]} g4+ {[%emt 0:00:09]} 52. Kg2 {[%emt 0:00:11]} Ne4 {[%emt 0:00:27]} 53. Be1 {[%emt 0:01:49]} Nxc5 {[%emt 0:00:32]} 54. dxc5 $11 {[%emt 0:00:05] KB-KN} Ne5 {[%emt 0:01:03]} 55. b4 {[%emt 0:02:07]} Nc4 {[%emt 0:02:10]} 56. Kg3 {[%emt 0:00:12]} Nxa3 {[%emt 0:01:34]} 57. c6 {[%emt 0:00:07] [#] Intending c7 and mate.} Ke6 {[%emt 0:00:49]} (57... Nc4 {seems wilder.} 58. c7 Nb6 59. Bf2 Nc8) 58. Kxg4 {[%emt 0:00:44]} (58. c7 {is interesting.} Kd7 59. Kxg4 Nc2 60. Bc3) 58... Kd6 {[%emt 0:00:31]} 59. Kf4 $1 {[%emt 0:00:41]} Kxc6 {[%emt 0:00:29]} 60. Ke4 {[%emt 0:00:06]} Nc4 {[%emt 0:01:32]} 61. Kd4 {[%emt 0:00:54]} Nb6 {[%emt 0:00:58]} 62. Bg3 {[%emt 0:00:22]} Nd5 {[%emt 0:00:38]} 63. Be1 {[%emt 0:00:05]} Nf4 {[%emt 0:00:22]} 64. Bd2 {[%emt 0:00:29]} Ne6+ {[%emt 0:00:21]} 65. Ke5 {[%emt 0:00:58]} Ng7 {[%emt 0:00:59]} 66. Be1 {[%emt 0:00:25]} Ne8 {[%emt 0:00:21]} 67. Kd4 {[%emt 0:00:58] Weighted Error Value: White=0.09 (flawless) /Black=0.08 (flawless)} 1/2-1/2

[Event "Swedish-ch MK-Elit 2022"]
[Site "Uppsala"]
[Date "2022.07.04"]
[Round "3.5"]
[White "Thorn, Eric"]
[Black "Cederstam, Carl"]
[Result "1-0"]
[ECO "D32"]
[WhiteElo "2366"]
[BlackElo "2332"]
[Annotator "TA"]
[PlyCount "85"]
[EventDate "2022.07.01"]
[EventType "tourn"]
[EventCountry "SWE"]
[SourceTitle "playchess.com"]
[Source "ChessBase"]
[SourceQuality "1"]
[TimeControl "40/5400+30:1800+30"]

{[%evp 13,85,16,36,40,41,32,49,41,129,143,150,144,148,146,147,146,233,229,257,155,185,162,168,170,163,167,159,129,121,121,125,121,131,130,135,131,133,110,110,108,119,114,106,104,199,197,229,229,229,229,229,229,229,229,424,308,456,406,472,461,1664,1569,1672,1191,1556,1609,1345,1059,4610,4132,1648,1349,1689,729]} 1. d4 {[%emt 0:01:16]} d5 {[%emt 0:00:19]} 2. c4 {[%emt 0:00:11]} e6 {[%emt 0:00:11]} 3. Nc3 {[%emt 0:00:10]} a6 {[%emt 0:00:47]} 4. cxd5 {[%emt 0:00:05]} exd5 {[%emt 0:00:06]} 5. Bf4 {[%emt 0:00:05]} Nf6 {[%emt 0:01:01]} 6. e3 {[%emt 0:00:08]} c5 {[%emt 0:02:05]} 7. Nf3 {[%emt 0:05:45]} Nc6 {[%emt 0:03:05]} 8. Be2 {[%emt 0:03:33] D32: Tarrasch Defence: Sidelines and lines without g3.} Be6 {[%emt 0:20:48] 8...c4 is becoming the main line.} 9. O-O {[%emt 0:04:12]} h6 {[%emt 0:07:43]} 10. Ne5 {[%emt 0:03:24] [#] White is slightly better.} Qa5 $146 {[%emt 0:10:19]} (10... Rc8 $14) ({Predecessor:} 10... Rc8 11. Nxc6 Rxc6 12. dxc5 Bxc5 13. Be5 O-O 14. Bf3 Nd7 15. Bd4 Nb6 16. Bxc5 Rxc5 {0-1 (59) Rustemov,A (2525)-Fedoseev,V (2701) Chess.com INT 2022}) 11. Qb3 $16 {[%emt 0:10:55]} Qb4 {[%emt 0:02:41]} 12. Nxc6 {[%emt 0:00:39] White is more active.} bxc6 {[%emt 0:00:43]} 13. Qxb4 {[%emt 0:04:12]} cxb4 {[%emt 0:00:10]} 14. Na4 {[%emt 0:00:03]} Ne4 {[%emt 0:06:49]} (14... Ra7 $16 {is a better defense.} 15. Rac1 Bd7) 15. Rfc1 $18 {[%emt 0:05:23]} Bd7 {[%emt 0:17:30]} 16. f3 {[%emt 0:06:03]} Nd6 {[%emt 0:01:07]} 17. Nc5 {[%emt 0:16:45]} Nb5 {[%emt 0:02:06]} 18. a4 {[%emt 0:00:58]} bxa3 {[%emt 0:00:31]} 19. bxa3 {[%emt 0:00:06]} Bxc5 {[%emt 0:11:48]} 20. Rxc5 {[%emt 0:00:21]} Ke7 {[%emt 0:00:18]} 21. a4 {[%emt 0:07:06]} Nd6 {[%emt 0:00:01]} 22. Ra5 {[%emt 0:00:24]} Rhb8 {[%emt 0:02:21]} 23. Rxa6 {[%emt 0:03:05]} Rxa6 {[%emt 0:01:52]} 24. Bxa6 {[%emt 0:00:05]} Ra8 {[%emt 0:00:11]} 25. Bxd6+ {[%emt 0:06:11]} Kxd6 $16 {[%emt 0:00:01][%mdl 4096] Endgame KRB-KRB} 26. Bd3 {[%emt 0:01:32]} c5 {[%emt 0:03:12]} 27. dxc5+ {[%emt 0:01:45]} Kxc5 {[%emt 0:00:06]} 28. a5 {[%emt 0:00:05][%cal Ba4a5,Ba5a6,Ba6a7][%mdl 32]} Bc8 {[%emt 0:02:23]} (28... Bb5 $16) 29. Kf2 $18 {[%emt 0:02:43]} Kb4 {[%emt 0:02:44]} 30. a6 {[%emt 0:00:40]} Kc5 {[%emt 0:00:01]} 31. Ra5+ {[%emt 0:04:14]} Kd6 {[%emt 0:00:51]} 32. Ke2 {[%emt 0:01:42]} (32. a7 $6 Kc7 $16) 32... Bd7 {[%emt 0:02:02]} 33. Kd2 {[%emt 0:00:49]} ({Much less strong is} 33. a7 $6 Bc6 34. Kd2 Kc7 $16) 33... Rc8 $2 {[%emt 0:00:04] [#]} (33... Bc6 34. Kc3 Kc7) 34. a7 {[%emt 0:02:11]} Bc6 {[%emt 0:00:01]} (34... Ra8 {was called for.} 35. e4 Kc6 36. exd5+ (36. Rxd5 Be6 $16) 36... Kb7) 35. e4 {[%emt 0:02:24]} dxe4 {[%emt 0:01:24]} 36. Bxe4 {[%emt 0:00:29] White is clearly winning.} Bxe4 {[%emt 0:00:35]} (36... Rd8 $142 37. a8=Q Bxa8 38. Rxa8 Rd7) 37. fxe4 {[%emt 0:00:07] KR-KR} Ra8 {[%emt 0:00:02]} 38. Kd3 {[%emt 0:01:44]} Kc6 {[%emt 0:00:33]} 39. Kc4 {[%emt 0:00:27] [#] Black must now prevent Ra6+.} Kb6 {[%emt 0:00:40] Inhibits Ra6+.} 40. Kb4 {[%emt 0:00:27]} Kc6 {[%emt 0:00:38]} 41. Ra6+ {[%emt 0:30:36]} Kc7 {[%emt 0:05:38]} 42. Kb5 {[%emt 0:00:00]} Kb7 {[%emt 0:00:05]} 43. Ra1 {[%emt 0:00:00] Weighted Error Value: White=0.13 (very precise) /Black=0.37} (43. Rb6+ $142 Kc7 44. Ka6) 1-0

[Event "Swedish-ch MK-Elit 2022"]
[Site "Uppsala"]
[Date "2022.07.05"]
[Round "4.1"]
[White "Furhoff, Johan"]
[Black "Wiedenkeller, Michael"]
[Result "0-1"]
[ECO "C55"]
[WhiteElo "2348"]
[BlackElo "2437"]
[Annotator "TA"]
[PlyCount "66"]
[EventDate "2022.07.01"]
[EventType "tourn"]
[EventCountry "SWE"]
[SourceTitle "playchess.com"]
[Source "ChessBase"]
[SourceQuality "1"]
[TimeControl "40/5400+30:1800+30"]

{[%evp 21,66,0,0,0,-7,6,0,0,10,-20,0,-66,-8,-23,0,-25,0,-11,-29,-56,-72,-53,-55,-101,-60,-214,-186,-374,-373,-360,-340,-470,-473,-618,-627,-649,-589,-587,-581,-1240,-556,-1233,-1214,-1185,-1169,-29997,-29998]} 1. e4 {[%emt 0:00:01]} e5 {[%emt 0:00:33]} 2. Nf3 {[%emt 0:01:08]} Nc6 {[%emt 0:00:09]} 3. Bc4 {[%emt 0:00:07]} Bc5 {[%emt 0:00:28]} 4. c3 {[%emt 0:00:17]} Nf6 {[%emt 0:00:19]} 5. d3 {[%emt 0:00:07]} O-O {[%emt 0:00:48]} 6. O-O {[%emt 0:00:30]} d5 {[%emt 0:00:38]} 7. exd5 {[%emt 0:00:25]} Nxd5 {[%emt 0:00:08]} 8. Re1 {[%emt 0:01:07]} Bg4 {[%emt 0:01:18]} 9. h3 {[%emt 0:00:55]} Bh5 {[%emt 0:00:13]} 10. Nbd2 {[%emt 0:01:07][%cal Bb1d2,Bd2e4,Be4g3][%mdl 32]} Nb6 {[%emt 0:06:02]} 11. Bb5 {[%emt 0:01:43] 11.Bb3 is the hot move.} Bd6 {[%emt 0:16:37]} 12. Ne4 {[%emt 0:06:55] C55: Two Knights: 4 d3, 4 d4 exd4 5 e5 and Max Lange Attack.} f5 {[%emt 0:06:06]} 13. Ng3 {[%emt 0:15:40]} Bxf3 {[%emt 0:03:45]} 14. Qxf3 {[%emt 0:00:38] The position is equal.} Qd7 $1 {[%emt 0:03:16]} 15. Bxc6 {[%emt 0:05:32]} bxc6 {[%emt 0:01:13]} 16. Bd2 {[%emt 0:03:23]} (16. Qd1 $11) 16... Rae8 {[%emt 0:01:17]} (16... e4 $1 $15 17. Qd1 exd3) 17. Rad1 {[%emt 0:01:46] [#]} Nd5 $146 {[%emt 0:03:14]} ({Predecessor:} 17... Na4 18. Bc1 Nc5 19. Nf1 e4 20. dxe4 fxe4 21. Qg4 Qf7 22. Re2 Nd3 23. Be3 c5 {½-½ (45) Kofidis,A (2400)-Dervishi,E Katerini 1993}) 18. Bc1 {[%emt 0:05:06]} Qf7 {[%emt 0:11:10]} 19. Nf1 {[%emt 0:11:03]} Qg6 {[%emt 0:03:26]} 20. Ne3 {[%emt 0:01:51]} e4 {[%emt 0:08:46]} 21. dxe4 {[%emt 0:03:37]} fxe4 {[%emt 0:00:12]} 22. Qg4 {[%emt 0:00:44] [#]} (22. Qe2 $2 Nf4 23. Qg4 (23. Qc4+ $2 Kh8 $19) 23... Qf7 $19) 22... Qf7 {[%emt 0:01:35] Black is much more active.} 23. Rf1 {[%emt 0:02:16] White does not recover from this.} (23. Qe2 $1 $15) 23... Nf4 $19 {[%emt 0:03:19] White must now prevent ...h5.} 24. Rd4 $2 {[%emt 0:08:40]} (24. Nc2 Nd3 25. b3) 24... h5 {[%emt 0:01:56]} 25. Qd1 {[%emt 0:00:46]} Qg6 {[%emt 0:00:28] Strongly threatening ...Nxh3+.} ({Stronger than} 25... Qxa2 26. g3 Nd3 27. Qxh5 $15) 26. Kh1 {[%emt 0:04:59] [#]} Nxh3 $1 {[%emt 0:09:16][%mdl 512]} 27. Rxd6 {[%emt 0:03:01]} ({But not} 27. gxh3 Rf3 28. Qxf3 (28. Qb3+ {gets mated.} Kh7 29. Ng2 Rxh3+ 30. Kg1 Rh2) 28... exf3 29. Rxd6 cxd6) (27. Qe2 Nf4) 27... cxd6 {[%emt 0:00:16]} 28. gxh3 {[%emt 0:00:08]} Rf3 {[%emt 0:00:21][%cal Rf3h3]} 29. Kh2 {[%emt 0:00:42]} Qe6 {[%emt 0:00:32]} 30. Ng2 {[%emt 0:02:39]} Qxh3+ {[%emt 0:01:33]} 31. Kg1 {[%emt 0:00:08]} Re6 {[%emt 0:02:02]} 32. Qb3 {[%emt 0:00:18]} Kh7 {[%emt 0:01:37] ( -> ...Rg6)} 33. Nf4 {[%emt 0:06:57] [#] Against Rg6+} Rg6+ $1 {[%emt 0:01:17][%mdl 512] Weighted Error Value: White=0.89/Black=0.06 (flawless)} 0-1